bitfinex-derivatives/quotes_BTCF0:USTF0_20241029
["timestamp","ask_amount","ask_price","bid_price","bid_amount"]
[1730214301265,0.0132174,71811.0,71810.0,0.20849092]
[1730214301663,0.0002174,71811.0,71810.0,0.20849092]
[1730214301855,0.0002174,71811.0,71810.0,0.20949092]
[1730214302050,0.0012174,71811.0,71810.0,0.20949092]
[1730214302454,0.0012174,71811.0,71810.0,0.22575874]
[1730214302654,0.09376483,71828.0,71819.0,0.16331483]
[1730214302860,0.069645,71825.0,71819.0,0.16331483]
[1730214303066,0.00237822,71820.0,71819.0,0.16345344]
[1730214303463,0.07202722,71820.0,71819.0,0.16345344]
[1730214304157,0.00237822,71820.0,71819.0,0.16345344]
[1730214304353,0.00437822,71820.0,71819.0,0.16345344]
[1730214304556,0.00437822,71820.0,71819.0,0.58117344]
[1730214304962,0.00228857,71820.0,71819.0,0.06978861]
[1730214305260,0.07193757,71820.0,71819.0,0.06978861]
[1730214305458,0.07593757,71820.0,71819.0,0.06978861]
[1730214305757,0.07593757,71820.0,71819.0,0.00013861]
[1730214306458,0.0922975,71820.0,71819.0,0.00013861]
[1730214308668,0.069658,71811.0,71810.0,0.00013192]
[1730214308968,0.88521755,71811.0,71810.0,0.00026764]
[1730214309172,0.79155272,71811.0,71810.0,0.00026764]
[1730214309359,0.79155272,71811.0,71810.0,0.16359147]
[1730214309761,0.79255272,71811.0,71810.0,0.16459147]
[1730214309974,0.79255272,71811.0,71810.0,0.07092664]
[1730214310468,0.79255272,71811.0,71810.0,0.06992664]
[1730214311068,0.72389472,71811.0,71810.0,0.16359147]
[1730214311370,0.79355272,71811.0,71810.0,0.06992664]
[1730214311671,0.79455272,71811.0,71810.0,0.06992664]
[1730214312086,0.79455272,71811.0,71810.0,0.00026764]
[1730214312974,0.069669,71800.0,71798.0,0.00010555]
[1730214313174,0.94177,71799.0,71798.0,0.00010555]
[1730214313469,0.9420766,71799.0,71798.0,0.00010555]
[1730214314371,0.9420766,71799.0,71798.0,0.00110555]
[1730214314372,0.9430766,71799.0,71798.0,0.00110555]
[1730214315371,0.9420766,71799.0,71798.0,0.00110555]
[1730214315571,0.9470766,71799.0,71798.0,0.00110555]
[1730214315976,0.9420766,71799.0,71798.0,0.00010555]
[1730214316165,0.97176232,71799.0,71798.0,0.00010555]
[1730214316779,0.96876232,71799.0,71798.0,0.00010555]
[1730214316984,0.97776232,71799.0,71798.0,0.00010555]
[1730214318481,1.48926715,71799.0,71789.0,8.816e-05]
[1730214318675,0.430478,71790.0,71789.0,8.816e-05]
[1730214318975,0.43078929,71790.0,71789.0,8.816e-05]
[1730214319377,0.84866929,71790.0,71789.0,8.816e-05]
[1730214319770,0.43078929,71790.0,71789.0,8.816e-05]
[1730214320878,0.43278929,71790.0,71789.0,8.816e-05]
[1730214321580,0.43678929,71790.0,71789.0,8.816e-05]
[1730214321781,0.43678929,71790.0,71789.0,0.06976716]
[1730214322289,0.43678929,71790.0,71789.0,8.816e-05]
[1730214324283,0.43678929,71790.0,71789.0,0.06976716]
[1730214324476,0.43678929,71790.0,71789.0,8.816e-05]
[1730214326378,0.43678929,71790.0,71789.0,0.06976716]
[1730214329189,0.36711129,71790.0,71789.0,0.06976716]
[1730214330593,0.43678929,71790.0,71789.0,0.06976716]
[1730214332393,0.43678929,71790.0,71789.0,8.816e-05]
[1730214339100,0.79758929,71790.0,71789.0,8.816e-05]
[1730214339491,0.79758929,71790.0,71789.0,0.06976716]
[1730214340198,0.79758929,71790.0,71789.0,8.816e-05]
[1730214349595,0.79758929,71790.0,71789.0,0.06976716]
[1730214350600,0.79758929,71790.0,71789.0,8.816e-05]
[1730214351501,0.36711129,71790.0,71789.0,0.06976716]
[1730214351699,0.36711129,71790.0,71789.0,0.48764716]
[1730214352619,0.00631129,71790.0,71789.0,0.48764716]
[1730214352913,0.069671,71798.0,71797.0,0.069672]
[1730214353100,0.0003066,71799.0,71797.0,0.069672]
[1730214353101,0.0003066,71799.0,71798.0,0.069671]
[1730214353504,0.069669,71800.0,71799.0,0.06967]
[1730214353915,0.0008,71806.0,71805.0,0.069664]
[1730214354102,0.3608,71811.0,71810.0,0.069659]
[1730214354308,0.3608,71811.0,71806.0,0.16286483]
[1730214354614,0.430459,71811.0,71810.0,0.069659]
[1730214355814,0.3608,71811.0,71810.0,0.16332383]
[1730214356313,0.430458,71811.0,71810.0,0.069659]
[1730214357013,0.444458,71811.0,71810.0,0.069659]
[1730214357214,0.458458,71811.0,71810.0,0.069659]
[1730214357914,0.458458,71811.0,71810.0,0.070659]
[1730214359312,0.3888,71811.0,71810.0,0.070659]
[1730214361215,0.458458,71811.0,71810.0,0.070659]
[1730214361918,0.3888,71811.0,71810.0,0.070659]
[1730214362724,0.028,71811.0,71810.0,1.16022866]
[1730214362908,0.3608,71828.0,71810.0,0.99690483]
[1730214362909,0.3608,71821.0,71810.0,0.99690483]
[1730214363109,0.3608,71821.0,71820.0,0.16331383]
[1730214363519,0.430448,71821.0,71820.0,0.16331383]
[1730214363722,0.430448,71821.0,71810.0,0.4862]
[1730214363723,0.52411283,71821.0,71810.0,0.00172]
[1730214363918,0.069658,71811.0,71810.0,0.070658]
[1730214364414,0.069658,71811.0,71810.0,0.069658]
[1730214365121,0.069658,71811.0,71810.0,0.071658]
[1730214366619,0.069658,71811.0,71810.0,0.069658]
[1730214366921,0.069658,71811.0,71810.0,0.071658]
[1730214367122,0.430458,71811.0,71810.0,0.071658]
[1730214367712,0.430458,71811.0,71810.0,0.002]
[1730214368714,0.430458,71811.0,71810.0,0.071659]
[1730214368918,0.435458,71811.0,71810.0,0.071659]
[1730214369220,0.005,71811.0,71810.0,0.071659]
[1730214369615,0.005,71811.0,71810.0,0.069659]
[1730214369916,0.3608,71819.0,71818.0,0.069651]
[1730214370227,0.3608,71819.0,71818.0,0.16331583]
[1730214370228,0.00029117,71819.0,71818.0,0.16331583]
[1730214371316,0.01029117,71819.0,71818.0,0.16431583]
[1730214372130,0.01029117,71819.0,71818.0,0.070651]
[1730214372629,0.01029117,71819.0,71818.0,0.071651]
[1730214372630,0.01929117,71819.0,71818.0,0.071651]
[1730214373914,0.08894117,71819.0,71818.0,0.071651]
[1730214374320,0.08894117,71819.0,71818.0,0.16531583]
[1730214375115,0.08894117,71819.0,71818.0,0.002]
[1730214375322,0.182606,71819.0,71818.0,0.002]
[1730214376327,0.08894117,71819.0,71818.0,0.002]
[1730214376533,0.08894117,71819.0,71818.0,0.071651]
[1730214380032,0.01929117,71819.0,71818.0,0.16531583]
[1730214381832,0.08894117,71819.0,71818.0,0.002]
[1730214382032,0.08894117,71819.0,71818.0,0.071651]
[1730214382033,0.182606,71819.0,71818.0,0.071651]
[1730214382932,0.08894117,71819.0,71818.0,0.071651]
[1730214387634,0.08894117,71819.0,71818.0,0.002]
[1730214388735,0.08894117,71819.0,71818.0,0.071651]
[1730214390630,0.08894117,71819.0,71818.0,0.16531583]
[1730214390631,0.01929117,71819.0,71818.0,0.16531583]
[1730214391939,0.01929117,71819.0,71818.0,0.52611583]
[1730214392136,0.3608,71838.0,71835.0,0.069635]
[1730214392336,0.3608,71850.0,71849.0,0.069621]
[1730214392337,0.430422,71850.0,71849.0,0.069621]
[1730214392537,0.44636109,71850.0,71849.0,0.16328583]
[1730214393337,0.44636109,71850.0,71849.0,0.069621]
[1730214393338,0.44663566,71850.0,71849.0,0.069621]
[1730214394048,0.44663566,71850.0,71849.0,0.070621]
[1730214394346,0.44663566,71850.0,71849.0,0.001]
[1730214394743,0.069622,71848.0,71847.0,0.069623]
[1730214395137,0.06989657,71848.0,71847.0,0.069623]
[1730214396443,0.07089657,71848.0,71847.0,0.070623]
[1730214396854,0.07089657,71848.0,71847.0,0.071623]
[1730214401349,0.43169657,71848.0,71847.0,0.071623]
[1730214402164,0.07189657,71848.0,71847.0,0.071623]
[1730214402349,0.43269657,71848.0,71847.0,0.071623]
[1730214403856,0.43069657,71848.0,71847.0,0.070623]
[1730214404152,0.43069657,71848.0,71847.0,0.069623]
[1730214404550,0.36107457,71848.0,71838.0,0.09366483]
[1730214404755,0.069636,71837.0,71836.0,0.069634]
[1730214405142,0.06991057,71837.0,71836.0,0.069634]
[1730214405451,0.00027457,71837.0,71836.0,0.069634]
[1730214407251,0.00027457,71837.0,71836.0,0.080634]
[1730214407758,0.00027457,71837.0,71836.0,0.090634]
[1730214411863,0.1635724,71837.0,71836.0,0.021]
[1730214414257,0.00027457,71837.0,71836.0,0.090634]
[1730214415762,0.06990757,71837.0,71836.0,0.090634]
[1730214416960,0.1635724,71837.0,71836.0,0.021]
[1730214417268,0.1635724,71837.0,71816.0,0.069653]
[1730214417269,0.069645,71825.0,71816.0,0.069653]
[1730214417454,0.5811724,71837.0,71810.0,0.16332383]
[1730214417455,0.3608,71821.0,71820.0,0.069649]
[1730214419658,0.3608,71829.0,71828.0,0.069642]
[1730214419855,0.3608,71829.0,71828.0,0.16330683]
[1730214420056,0.3608,71829.0,71828.0,0.23294883]
[1730214420057,0.00027457,71829.0,71828.0,0.23294883]
[1730214420257,0.00027457,71837.0,71836.0,0.069634]
[1730214420457,0.00027457,71837.0,71836.0,0.74080366]
[1730214420757,0.00053513,71837.0,71836.0,0.74095717]
[1730214421360,0.00053513,71837.0,71836.0,0.64729234]
[1730214421557,0.00053513,71837.0,71836.0,0.16545234]
[1730214422566,0.00053513,71837.0,71836.0,0.16745234]
[1730214422767,0.00053513,71837.0,71836.0,0.29045234]
[1730214423062,0.00053513,71837.0,71836.0,0.29645234]
[1730214423063,0.00153513,71837.0,71836.0,0.29645234]
[1730214423264,0.00153513,71837.0,71836.0,0.30545234]
[1730214423861,0.00153513,71837.0,71836.0,0.32173828]
[1730214424465,0.00153513,71837.0,71836.0,0.10507345]
[1730214424859,0.00153513,71837.0,71836.0,0.19873828]
[1730214426667,0.00153513,71837.0,71836.0,0.08878751]
[1730214426863,0.07116813,71837.0,71836.0,0.08878751]
[1730214430573,0.00153513,71837.0,71836.0,0.08878751]
[1730214430963,0.16483296,71837.0,71836.0,0.01915351]
[1730214431163,0.16483296,71837.0,71819.0,0.0412804]
[1730214431164,0.069648,71821.0,71819.0,0.0412804]
[1730214431366,0.60646479,71837.0,71817.0,0.06965]
[1730214431367,0.069653,71818.0,71817.0,0.06965]
[1730214431567,0.16331783,71818.0,71817.0,0.06965]
[1730214431771,0.1635841,71818.0,71817.0,0.06965]
[1730214431962,0.06991927,71818.0,71817.0,0.06965]
[1730214432572,0.00026627,71818.0,71817.0,0.06965]
[1730214433163,0.00126627,71818.0,71817.0,0.08365]
[1730214433758,0.07091727,71818.0,71817.0,0.09765]
[1730214433962,0.07191727,71818.0,71817.0,0.09765]
[1730214434974,0.00226627,71818.0,71817.0,0.09765]
[1730214435966,0.00226627,71818.0,71817.0,0.60903483]
[1730214436578,0.3608,71835.0,71817.0,0.60903483]
[1730214436759,0.3608,71835.0,71834.0,0.069636]
[1730214437173,0.36105372,71835.0,71834.0,0.06979365]
[1730214437970,0.36105372,71835.0,71834.0,0.58109848]
[1730214437971,0.00025372,71835.0,71834.0,0.58109848]
[1730214438862,0.00125372,71835.0,71834.0,0.49843365]
[1730214439064,0.00125372,71835.0,71834.0,0.59209848]
[1730214439269,0.00225372,71835.0,71834.0,0.50543365]
[1730214439970,0.00225372,71835.0,71834.0,0.17586949]
[1730214440171,0.00225372,71835.0,71834.0,0.59350949]
[1730214441174,0.00225372,71835.0,71834.0,0.17586949]
[1730214441381,0.00225372,71835.0,71834.0,0.68717432]
[1730214441575,0.00027457,71848.0,71838.0,0.16329683]
[1730214441877,0.00027457,71848.0,71847.0,0.16328783]
[1730214442078,0.00027457,71848.0,71847.0,0.16347515]
[1730214442878,0.00127457,71848.0,71847.0,0.16347515]
[1730214443569,0.00327457,71848.0,71847.0,0.16347515]
[1730214444277,0.00227457,71848.0,71847.0,0.16347515]
[1730214444473,0.00327457,71848.0,71847.0,0.16347515]
[1730214445182,0.00327457,71848.0,71847.0,0.17931993]
[1730214445778,0.00327457,71848.0,71847.0,0.2083351]
[1730214446277,0.00327457,71848.0,71847.0,0.0856551]
[1730214446581,0.1665614,71848.0,71847.0,0.06981032]
[1730214446777,0.00327457,71848.0,71847.0,0.06981032]
[1730214447185,0.00327457,71848.0,71847.0,0.16347515]
[1730214447374,0.00327457,71848.0,71847.0,0.17928944]
[1730214449480,0.00208831,71868.0,71866.0,0.069605]
[1730214449680,0.3608,71873.0,71867.0,0.09366483]
[1730214449681,0.069602,71869.0,71867.0,0.09366483]
[1730214449879,0.069602,71869.0,71868.0,0.069603]
[1730214450083,0.069602,71869.0,71868.0,0.06980566]
[1730214450286,0.3608,71873.0,71868.0,0.12288266]
[1730214450485,0.069598,71873.0,71872.0,0.069598]
[1730214450681,0.069598,71873.0,71872.0,0.06980066]
[1730214451490,0.081598,71873.0,71872.0,0.06980066]
[1730214451792,0.093598,71873.0,71872.0,0.07080066]
[1730214451982,0.081598,71873.0,71872.0,0.07080066]
[1730214452184,0.093598,71873.0,71872.0,0.07180066]
[1730214452388,0.093598,71873.0,71872.0,0.19444066]
[1730214454889,0.093598,71873.0,71872.0,0.28810549]
[1730214455288,0.093598,71873.0,71872.0,0.19444066]
[1730214456092,0.093598,71873.0,71872.0,0.07180066]
[1730214456292,0.093598,71873.0,71872.0,0.19444066]
[1730214458689,0.093598,71873.0,71872.0,0.07180066]
[1730214458898,0.093598,71873.0,71872.0,0.00220266]
[1730214460993,0.093598,71873.0,71872.0,0.16546649]
[1730214465201,0.093598,71873.0,71872.0,0.18120346]
[1730214465802,0.093598,71873.0,71872.0,0.16546649]
[1730214468811,0.093598,71873.0,71872.0,0.00220266]
[1730214471107,0.093598,71873.0,71872.0,0.07180166]
[1730214473415,0.093598,71873.0,71872.0,0.00220266]
[1730214474506,0.093598,71873.0,71872.0,0.07180166]
[1730214475807,0.093598,71873.0,71872.0,0.00220266]
[1730214477909,0.069613,71858.0,71854.0,0.09366483]
[1730214478106,0.430413,71858.0,71857.0,0.069613]
[1730214478310,0.430413,71858.0,71857.0,0.06979981]
[1730214479411,0.430413,71858.0,71857.0,0.07179981]
[1730214479909,0.06961,71861.0,71860.0,0.06961]
[1730214480101,0.06961,71861.0,71860.0,0.16327483]
[1730214480303,0.06982412,71861.0,71860.0,0.16346164]
[1730214481002,0.06982412,71861.0,71860.0,0.00018681]
[1730214481201,0.07082412,71861.0,71860.0,0.00018681]
[1730214481512,0.07082412,71861.0,71860.0,0.06979781]
[1730214481513,0.07282412,71861.0,71860.0,0.06979781]
[1730214483407,0.58396895,71861.0,71857.0,0.00018681]
[1730214483606,0.16328683,71848.0,71845.0,0.069625]
[1730214483811,0.52408683,71848.0,71845.0,0.069625]
[1730214484006,0.52408683,71848.0,71847.0,0.00036557]
[1730214484607,0.52431124,71848.0,71847.0,0.00036557]
[1730214485310,0.52631124,71848.0,71847.0,0.01936557]
[1730214486318,0.54230537,71848.0,71847.0,0.01936557]
[1730214486614,1.25986537,71848.0,71834.0,0.00015765]
[1730214486915,1.25986537,71848.0,71813.0,0.069656]
[1730214486916,0.069655,71814.0,71813.0,0.069656]
[1730214487415,0.06966,71809.0,71808.0,0.08567338]
[1730214487719,0.06966,71809.0,71808.0,0.16332483]
[1730214487720,0.43046,71809.0,71808.0,0.16332483]
[1730214488212,0.3608,71809.0,71808.0,0.16332483]
[1730214488910,0.3628,71809.0,71808.0,0.18532483]
[1730214490724,0.3628,71809.0,71808.0,0.60308483]
[1730214491513,0.002,71809.0,71808.0,0.60308483]
[1730214494125,0.002,71809.0,71808.0,0.18532483]
[1730214494831,0.002,71809.0,71808.0,0.09166]
[1730214495034,0.07166,71809.0,71808.0,0.022]
[1730214496534,0.16532483,71809.0,71808.0,0.022]
[1730214496745,0.16532483,71809.0,71785.0,0.0008]
[1730214496746,0.069674,71795.0,71785.0,0.09366483]
[1730214497043,0.430474,71795.0,71785.0,0.01570459]
[1730214497240,0.571374,71795.0,71782.0,0.0699]
[1730214497436,0.571374,71795.0,71781.0,0.16335183]
[1730214497633,0.069686,71782.0,71781.0,0.16335183]
[1730214497827,0.3608,71787.0,71783.0,0.069685]
[1730214498029,0.430481,71787.0,71786.0,0.09366483]
[1730214498228,0.45446483,71787.0,71779.0,0.09366483]
[1730214498438,0.45446483,71787.0,71779.0,0.16335383]
[1730214498439,0.430488,71780.0,71779.0,0.16335383]
[1730214498736,0.3608,71780.0,71778.0,0.01644632]
[1730214498938,0.069691,71778.0,71775.0,0.16335783]
[1730214499124,0.069691,71778.0,71768.0,0.12204]
[1730214499125,0.45446483,71780.0,71771.0,0.09366483]
[1730214499325,0.45446483,71780.0,71768.0,0.12204]
[1730214499326,0.069699,71769.0,71768.0,0.09366483]
[1730214499543,0.069697,71771.0,71770.0,0.069697]
[1730214500643,0.070697,71771.0,71770.0,0.069697]
[1730214500838,0.001,71771.0,71765.0,0.09366483]
[1730214501035,0.430502,71766.0,71765.0,0.09366483]
[1730214501235,0.3608,71766.0,71765.0,0.16336783]
[1730214503038,0.3618,71766.0,71765.0,0.16336783]
[1730214503644,0.3628,71766.0,71765.0,0.16336783]
[1730214504847,0.002,71766.0,71765.0,0.16336783]
[1730214506347,0.3608,71773.0,71772.0,0.069696]
[1730214506535,0.3608,71773.0,71772.0,0.16336083]
[1730214507537,0.3618,71773.0,71772.0,0.16336083]
[1730214507937,0.3628,71773.0,71772.0,0.16336083]
[1730214509143,0.002,71773.0,71772.0,0.16336083]
[1730214509342,0.3608,71783.0,71782.0,0.069686]
[1730214509539,0.3608,71783.0,71782.0,0.16335083]
[1730214510646,0.431485,71783.0,71782.0,0.069686]
[1730214512249,0.432485,71783.0,71782.0,0.069686]
[1730214512644,0.069688,71780.0,71779.0,0.069688]
[1730214513548,0.36368,71783.0,71782.0,0.069686]
[1730214513744,0.3618,71783.0,71782.0,0.069686]
[1730214513948,0.3608,71783.0,71782.0,0.069686]
[1730214515652,0.002,71783.0,71782.0,0.069686]
[1730214517346,0.002,71783.0,71782.0,0.44671099]
[1730214517538,0.3608,71797.0,71796.0,0.069673]
[1730214517744,0.3608,71797.0,71796.0,0.16333783]
[1730214518845,0.3648,71797.0,71796.0,0.16333783]
[1730214519043,0.3668,71797.0,71796.0,0.16333783]
[1730214519552,0.3668,71797.0,71796.0,0.069673]
[1730214520645,0.436472,71797.0,71796.0,0.069673]
[1730214520842,0.075672,71797.0,71796.0,0.069673]
[1730214521158,0.075672,71797.0,71792.0,0.069676]
[1730214521159,0.069677,71793.0,71792.0,0.069676]
[1730214521347,0.430477,71793.0,71792.0,0.069676]
[1730214521653,0.430477,71793.0,71791.0,0.069676]
[1730214521654,0.069677,71792.0,71791.0,0.069676]
[1730214523054,0.3608,71793.0,71789.0,0.09366483]
[1730214523254,0.3608,71793.0,71792.0,0.16334083]
[1730214524957,0.3608,71800.0,71799.0,0.06967]
[1730214525255,0.3608,71800.0,71799.0,0.16333483]
[1730214526852,0.3658,71800.0,71799.0,0.16333483]
[1730214527057,0.3728,71800.0,71799.0,0.16333483]
[1730214527459,0.3728,71800.0,71799.0,0.06967]
[1730214527649,0.442469,71800.0,71799.0,0.06967]
[1730214528352,0.3728,71800.0,71799.0,0.06967]
[1730214528546,0.3728,71800.0,71799.0,0.16333483]
[1730214528751,0.3728,71800.0,71799.0,0.06967]
[1730214530856,0.442469,71800.0,71799.0,0.06967]
[1730214531448,0.53613383,71800.0,71784.0,0.09366483]
[1730214531654,0.3608,71792.0,71791.0,0.069677]
[1730214534460,0.498176,71792.0,71791.0,0.069677]
[1730214535561,0.498176,71792.0,71788.0,0.09366483]
[1730214535562,0.37656584,71800.0,71799.0,0.06967]
[1730214535761,0.44623484,71800.0,71799.0,0.16333483]
[1730214536955,0.45323484,71800.0,71799.0,0.16333483]
[1730214537363,0.45823484,71800.0,71799.0,0.16333483]
[1730214538570,0.45823484,71800.0,71799.0,0.06967]
[1730214540566,0.442469,71800.0,71799.0,0.06967]
[1730214541763,0.069674,71797.0,71796.0,0.069672]
[1730214542162,0.069674,71797.0,71784.0,0.3608]
[1730214542163,0.069679,71794.0,71793.0,0.069675]
[1730214542374,0.069679,71794.0,71774.0,0.04141173]
[1730214542375,0.09366483,71794.0,71774.0,0.04141173]
[1730214542567,0.45526483,71797.0,71773.0,0.00208956]
[1730214542568,0.069694,71774.0,71773.0,0.00208956]
[1730214542963,0.210094,71774.0,71773.0,0.00208956]
[1730214543270,0.3608,71775.0,71774.0,0.069694]
[1730214544070,0.3608,71778.0,71777.0,0.069691]
[1730214544259,0.3608,71778.0,71777.0,0.16335583]
[1730214545676,0.069694,71774.0,71773.0,0.069693]
[1730214547067,0.3628,71778.0,71772.0,0.09366483]
[1730214547263,0.3618,71778.0,71777.0,0.069691]
[1730214547666,0.43149,71778.0,71777.0,0.069691]
[1730214548266,0.3628,71778.0,71777.0,0.069691]
[1730214548874,0.001,71778.0,71777.0,0.069691]
[1730214549664,0.06968,71789.0,71788.0,0.069678]
[1730214550772,0.07368,71789.0,71788.0,0.069678]
[1730214550973,0.07568,71789.0,71788.0,0.069678]
[1730214551474,0.07568,71789.0,71779.0,0.069687]
[1730214551475,0.06969,71780.0,71779.0,0.069687]
[1730214551779,0.43049,71780.0,71779.0,0.069687]
[1730214552274,0.006,71789.0,71779.0,0.069687]
[1730214552573,0.069682,71787.0,71786.0,0.16334483]
[1730214552778,0.002,71789.0,71788.0,0.06968]
[1730214553268,0.3608,71791.0,71790.0,0.069678]
[1730214553472,0.3608,71791.0,71790.0,0.16334283]
[1730214554878,0.3618,71791.0,71790.0,0.16334283]
[1730214555274,0.001,71791.0,71790.0,0.16334283]
[1730214555874,0.001,71791.0,71790.0,0.069678]
[1730214555875,0.070677,71791.0,71790.0,0.069678]
[1730214556078,0.070677,71791.0,71790.0,0.16334283]
[1730214556272,0.001,71791.0,71790.0,0.16334283]
[1730214558975,0.070677,71791.0,71790.0,0.16334283]
[1730214559280,0.3608,71795.0,71790.0,0.09366483]
[1730214559485,0.001,71791.0,71790.0,0.16334283]
[1730214560389,0.069677,71792.0,71791.0,0.069676]
[1730214561882,0.069677,71792.0,71791.0,0.16334083]
[1730214563095,0.069684,71785.0,71784.0,0.069683]
[1730214563978,0.3608,71793.0,71784.0,0.069683]
[1730214564181,0.069679,71791.0,71790.0,0.069677]
[1730214565289,0.16334383,71791.0,71786.0,0.069682]
[1730214565485,0.069683,71787.0,71786.0,0.069682]
[1730214566092,0.3608,71792.0,71785.0,0.09366483]
[1730214566383,0.3608,71786.0,71785.0,0.16334783]
[1730214567585,0.3608,71786.0,71785.0,0.069683]
[1730214567789,0.069687,71783.0,71782.0,0.069684]
[1730214568286,0.3608,71783.0,71777.0,0.04141173]
[1730214568488,0.16335483,71778.0,71777.0,0.04141173]
[1730214569083,0.23135483,71778.0,71777.0,0.11110273]
[1730214569687,0.23135483,71778.0,71777.0,0.04141173]
[1730214569688,0.23335483,71778.0,71777.0,0.04141173]
[1730214570281,0.23335483,71778.0,71777.0,0.11110273]
[1730214573091,0.13969,71778.0,71777.0,0.11110273]
[1730214573292,0.15535928,71778.0,71777.0,0.11110273]
[1730214574093,0.24902411,71778.0,71777.0,0.04141173]
[1730214574296,0.24902411,71778.0,71777.0,0.069691]
[1730214574297,0.15535928,71778.0,71777.0,0.069691]
[1730214574886,0.07,71778.0,71777.0,0.069691]
[1730214575097,0.13969,71778.0,71777.0,0.069691]
[1730214575395,0.07,71778.0,71777.0,0.069691]
[1730214575590,0.002,71778.0,71777.0,0.069691]
[1730214577090,0.002,71778.0,71775.0,0.09366483]
[1730214577299,0.002,71778.0,71769.0,0.01607612]
[1730214577300,0.069693,71775.0,71774.0,0.069694]
[1730214577797,0.139993,71775.0,71774.0,0.069694]
[1730214578511,0.069697,71771.0,71770.0,0.16336183]
[1730214578793,0.430497,71771.0,71770.0,0.16336183]
[1730214579590,0.431497,71771.0,71770.0,0.16336183]
[1730214580901,0.432497,71771.0,71770.0,0.16336183]
[1730214584102,0.432497,71771.0,71770.0,0.069697]
[1730214584493,0.3628,71771.0,71762.0,0.09366483]
[1730214584797,0.069703,71767.0,71766.0,0.0697]
[1730214585302,0.069703,71767.0,71766.0,0.06961103]
[1730214586390,0.070703,71767.0,71766.0,0.06961103]
[1730214587199,0.071703,71767.0,71766.0,0.06961103]
[1730214592103,0.069705,71763.0,71751.0,0.0696]
[1730214592305,0.3608,71755.0,71754.0,0.07180312]
[1730214592505,0.3608,71755.0,71754.0,0.16546795]
[1730214593199,0.3608,71755.0,71754.0,0.18121773]
[1730214594003,0.3618,71755.0,71754.0,0.18121773]
[1730214594510,0.3628,71755.0,71754.0,0.18121773]
[1730214595807,0.432512,71755.0,71754.0,0.18121773]
[1730214597004,0.432512,71755.0,71754.0,0.07180312]
[1730214597705,0.432512,71755.0,71754.0,0.16546795]
[1730214598910,0.3628,71755.0,71754.0,0.16546795]
[1730214599115,0.432512,71755.0,71754.0,0.16546795]
[1730214600005,0.3628,71755.0,71754.0,0.16546795]
[1730214600812,0.432512,71755.0,71754.0,0.16546795]
[1730214601120,0.3628,71755.0,71754.0,0.16546795]
[1730214601815,0.002,71755.0,71754.0,0.58354795]
[1730214602022,0.002,71755.0,71754.0,0.16546795]
[1730214603316,0.071712,71755.0,71754.0,0.16546795]
[1730214603518,0.432512,71755.0,71754.0,0.07180312]
[1730214606218,0.3628,71755.0,71754.0,0.07180312]
[1730214607418,0.002,71755.0,71754.0,0.07180312]
[1730214607722,0.002,71755.0,71754.0,0.11321485]
[1730214607922,0.002,71755.0,71754.0,0.43260312]
[1730214608117,0.43238,71769.0,71754.0,0.43260312]
[1730214608118,0.3608,71769.0,71768.0,0.0697]
[1730214608415,0.45446483,71769.0,71763.0,0.04163218]
[1730214608612,0.45446483,71769.0,71758.0,0.05550957]
[1730214608613,0.3608,71769.0,71766.0,0.09366483]
[1730214608813,0.3608,71769.0,71768.0,0.0697]
[1730214609412,0.3628,71769.0,71768.0,0.0697]
[1730214609619,0.002,71769.0,71768.0,0.4305]
[1730214610011,0.001,71769.0,71768.0,0.4305]
[1730214610211,0.002,71769.0,71768.0,0.4305]
[1730214611831,0.002,71769.0,71768.0,0.0697]
[1730214612814,0.09566483,71769.0,71762.0,0.05770135]
[1730214613123,0.09566483,71769.0,71756.0,0.069711]
[1730214613124,0.069712,71757.0,71756.0,0.069711]
[1730214613319,0.069712,71755.0,71754.0,0.00209012]
[1730214614814,0.070712,71755.0,71754.0,0.00209012]
[1730214615131,0.071712,71755.0,71754.0,0.00209012]
[1730214615616,0.071712,71755.0,71713.0,0.10344884]
[1730214615617,0.06973,71737.0,71736.0,0.069729]
[1730214615816,0.43053,71737.0,71736.0,0.069729]
[1730214616019,0.3608,71737.0,71736.0,0.069729]
[1730214616218,0.3608,71771.0,71736.0,1.38732966]
[1730214616425,0.3608,71771.0,71754.0,0.52417783]
[1730214616426,0.1399,71761.0,71754.0,0.52417783]
[1730214616814,0.23037283,71760.0,71754.0,0.430513]
[1730214617020,0.001,71755.0,71754.0,0.430513]
[1730214617218,0.16066483,71760.0,71756.0,0.069711]
[1730214617429,0.23037283,71760.0,71756.0,0.069711]
[1730214617622,0.001,71755.0,71754.0,0.3608]
[1730214617823,0.09466483,71755.0,71747.0,0.3608]
[1730214618023,0.09466483,71755.0,71739.0,0.00208998]
[1730214618024,0.16338383,71748.0,71739.0,0.00208998]
[1730214618227,0.0716,71747.0,71739.0,0.09575481]
[1730214618428,0.0716,71747.0,71745.0,0.069722]
[1730214618631,0.0729,71746.0,71745.0,0.069722]
[1730214620023,0.0739,71746.0,71745.0,0.069722]
[1730214620636,0.0749,71746.0,71745.0,0.069722]
[1730214621129,0.144621,71746.0,71745.0,0.069722]
[1730214622028,0.144621,71746.0,71739.0,0.01843872]
[1730214622029,0.069727,71740.0,71739.0,0.00208998]
[1730214622233,0.069727,71740.0,71713.0,0.3608]
[1730214622234,0.069739,71729.0,71713.0,0.3608]
[1730214622441,0.09366483,71716.0,71715.0,0.07184227]
[1730214622738,0.16341483,71716.0,71715.0,0.07184227]
[1730214622923,0.06975,71716.0,71715.0,0.07184227]
[1730214623122,0.09366483,71720.0,71715.0,0.00209127]
[1730214623537,0.16341483,71716.0,71713.0,0.3608]
[1730214623734,0.16341483,71716.0,71715.0,0.069751]
[1730214623933,0.16441483,71716.0,71715.0,0.069751]
[1730214624329,0.001,71716.0,71715.0,0.069751]
[1730214625429,0.002,71716.0,71715.0,0.069751]
[1730214625835,0.069753,71714.0,71712.0,0.069754]
[1730214626041,0.069753,71713.0,71711.0,0.069755]
[1730214626232,0.069754,71712.0,71711.0,0.069755]
[1730214626941,0.14068663,71714.0,71706.0,0.3608]
[1730214627241,0.14068663,71714.0,71702.0,0.14068663]
[1730214627242,0.14068663,71707.0,71702.0,0.01572035]
[1730214627441,0.069763,71703.0,71702.0,0.069764]